{"text_format":"3","workbook":"xlsx","n_sheets":7,"sheets":["Mandag","Tirsdag","Onsdag","Torsdag","Fredag","Lørdag","Søndag"],"not_rendered":{"defined_names":24},"read":"whole","date_system":"1900"}

{"sheet":"Mandag","index":0,"n_rows":10,"n_cols":13,"rows_kept":10,"merged":[[1,1,2,1],[1,2,1,10],[1,11,1,12],[2,2,2,10],[2,11,2,12]]}
[null,"VAGTPLAN"]
[null,"MANDAG","For uge: ",{"$nulls":8},"DATO"]
[null,null,"Afdelingsnavn: ",{"$nulls":8},"AFDELING"]
[null,"Navn på medarbejder","7:00","8:00","9:00","10:00","11:00","12:00","13:00","14:00","15:00","Syg?","I ALT"]
[null,"Anita C.","afdelingsleder","afdelingsleder","afdelingsleder","afdelingsleder","afdelingsleder","afdelingsleder","afdelingsleder","afdelingsleder","afdelingsleder",null,{"$f":"IFERROR(COUNTIF(Mandag[[#This Row],[7:00]:[15:00]],\"*\"),\"\")","v":9}]
[null,"Lukas S.",null,"kassemedarbejder","kassemedarbejder","kassemedarbejder","kassemedarbejder",{"$nulls":5},{"$f":"IFERROR(COUNTIF(Mandag[[#This Row],[7:00]:[15:00]],\"*\"),\"\")","v":4}]
[null,"Peter B.",null,"reception","reception","reception","reception ","reception","reception","reception",null,null,{"$f":"IFERROR(COUNTIF(Mandag[[#This Row],[7:00]:[15:00]],\"*\"),\"\")","v":7}]
[null,"David H.",null,"reception","reception","reception","reception ","reception","reception","reception",null,null,{"$f":"IFERROR(COUNTIF(Mandag[[#This Row],[7:00]:[15:00]],\"*\"),\"\")","v":7}]
[null,"Anders N.",{"$nulls":10},{"$f":"IFERROR(COUNTIF(Mandag[[#This Row],[7:00]:[15:00]],\"*\"),\"\")","v":0}]
[null,"Heidi I.",{"$nulls":5},"kassemedarbejder","kassemedarbejder","kassemedarbejder","kassemedarbejder",null,{"$f":"IFERROR(COUNTIF(Mandag[[#This Row],[7:00]:[15:00]],\"*\"),\"\")","v":4}]

{"sheet":"Tirsdag","index":1,"n_rows":10,"n_cols":13,"rows_kept":10,"merged":[[1,1,2,1],[1,2,1,10],[1,11,1,12],[2,2,2,10],[2,11,2,12]]}
[null,{"$f":"VAGT_PLAN_Titel","v":"VAGTPLAN"}]
[null,"TIRSDAG","For uge: ",{"$nulls":8},{"$f":"DATO","v":"DATO"}]
[null,null,"Afdelingsnavn: ",{"$nulls":8},{"$f":"AFDELING","v":"AFDELING"}]
[null,"Navn på medarbejder","7:00","8:00","9:00","10:00","11:00","12:00","13:00","14:00","15:00","Syg?","I ALT"]
[null,"Anita C.","afdelingsleder","afdelingsleder","afdelingsleder","afdelingsleder","afdelingsleder","afdelingsleder","afdelingsleder","afdelingsleder","afdelingsleder",null,{"$f":"IFERROR(COUNTIF(Tirsdag[[#This Row],[7:00]:[15:00]],\"*\"),\"\")","v":9}]
[null,"Lukas S.",null,"kassemedarbejder","kassemedarbejder","kassemedarbejder","kassemedarbejder",{"$nulls":5},{"$f":"IFERROR(COUNTIF(Tirsdag[[#This Row],[7:00]:[15:00]],\"*\"),\"\")","v":4}]
[null,"Peter B.",null,"reception","reception","reception","reception ","reception","reception","reception",null,null,{"$f":"IFERROR(COUNTIF(Tirsdag[[#This Row],[7:00]:[15:00]],\"*\"),\"\")","v":7}]
[null,"David H.",null,"reception","reception","reception","reception ","reception","reception","reception",null,null,{"$f":"IFERROR(COUNTIF(Tirsdag[[#This Row],[7:00]:[15:00]],\"*\"),\"\")","v":7}]
[null,"Anders N.",{"$nulls":9},"Sygefravær",{"$f":"IFERROR(COUNTIF(Tirsdag[[#This Row],[7:00]:[15:00]],\"*\"),\"\")","v":0}]
[null,"Heidi I.",{"$nulls":5},"kassemedarbejder","kassemedarbejder","kassemedarbejder","kassemedarbejder",null,{"$f":"IFERROR(COUNTIF(Tirsdag[[#This Row],[7:00]:[15:00]],\"*\"),\"\")","v":4}]

{"sheet":"Onsdag","index":2,"n_rows":10,"n_cols":13,"rows_kept":10,"merged":[[1,1,2,1],[1,2,1,10],[1,11,1,12],[2,2,2,10],[2,11,2,12]]}
[null,{"$f":"VAGT_PLAN_Titel","v":"VAGTPLAN"}]
[null,"ONSDAG","For uge: ",{"$nulls":8},{"$f":"DATO","v":"DATO"}]
[null,null,"Afdelingsnavn: ",{"$nulls":8},{"$f":"AFDELING","v":"AFDELING"}]
[null,"Navn på medarbejder","7:00","8:00","9:00","10:00","11:00","12:00","13:00","14:00","15:00","Syg?","I ALT"]
[null,"Anita C.","afdelingsleder","afdelingsleder","afdelingsleder","afdelingsleder","afdelingsleder","afdelingsleder","afdelingsleder","afdelingsleder","afdelingsleder",null,{"$f":"IFERROR(COUNTIF(Onsdag[[#This Row],[7:00]:[15:00]],\"*\"),\"\")","v":9}]
[null,"Lukas S.",null,"kassemedarbejder","kassemedarbejder","kassemedarbejder","kassemedarbejder",{"$nulls":5},{"$f":"IFERROR(COUNTIF(Onsdag[[#This Row],[7:00]:[15:00]],\"*\"),\"\")","v":4}]
[null,"Peter B.",null,"reception","reception","reception","reception ","reception","reception","reception",null,null,{"$f":"IFERROR(COUNTIF(Onsdag[[#This Row],[7:00]:[15:00]],\"*\"),\"\")","v":7}]
[null,"David H.",null,"reception","reception","reception","reception ","reception","reception","reception",null,null,{"$f":"IFERROR(COUNTIF(Onsdag[[#This Row],[7:00]:[15:00]],\"*\"),\"\")","v":7}]
[null,"Anders N.",{"$nulls":9},"Sygefravær",{"$f":"IFERROR(COUNTIF(Onsdag[[#This Row],[7:00]:[15:00]],\"*\"),\"\")","v":0}]
[null,"Heidi I.",{"$nulls":5},"kassemedarbejder","kassemedarbejder","kassemedarbejder","kassemedarbejder",null,{"$f":"IFERROR(COUNTIF(Onsdag[[#This Row],[7:00]:[15:00]],\"*\"),\"\")","v":4}]

{"sheet":"Torsdag","index":3,"n_rows":10,"n_cols":13,"rows_kept":10,"merged":[[1,1,2,1],[1,2,1,10],[1,11,1,12],[2,2,2,10],[2,11,2,12]]}
[null,{"$f":"VAGT_PLAN_Titel","v":"VAGTPLAN"}]
[null,"TORSDAG","For uge: ",{"$nulls":8},{"$f":"DATO","v":"DATO"}]
[null,null,"Afdelingsnavn: ",{"$nulls":8},{"$f":"AFDELING","v":"AFDELING"}]
[null,"Navn på medarbejder","7:00","8:00","9:00","10:00","11:00","12:00","13:00","14:00","15:00","Syg?","I ALT"]
[null,"Anita C.","afdelingsleder","afdelingsleder","afdelingsleder","afdelingsleder","afdelingsleder","afdelingsleder","afdelingsleder","afdelingsleder","afdelingsleder",null,{"$f":"IFERROR(COUNTIF(Torsdag[[#This Row],[7:00]:[15:00]],\"*\"),\"\")","v":9}]
[null,"Lukas S.",null,"kassemedarbejder","kassemedarbejder","kassemedarbejder","kassemedarbejder",{"$nulls":5},{"$f":"IFERROR(COUNTIF(Torsdag[[#This Row],[7:00]:[15:00]],\"*\"),\"\")","v":4}]
[null,"Peter B.",null,"reception","reception","reception","reception ","reception","reception","reception",null,null,{"$f":"IFERROR(COUNTIF(Torsdag[[#This Row],[7:00]:[15:00]],\"*\"),\"\")","v":7}]
[null,"David H.",null,"reception","reception","reception","reception ","reception","reception","reception",null,null,{"$f":"IFERROR(COUNTIF(Torsdag[[#This Row],[7:00]:[15:00]],\"*\"),\"\")","v":7}]
[null,"Anders N.",{"$nulls":9},"Sygefravær",{"$f":"IFERROR(COUNTIF(Torsdag[[#This Row],[7:00]:[15:00]],\"*\"),\"\")","v":0}]
[null,"Heidi I.",{"$nulls":5},"kassemedarbejder","kassemedarbejder","kassemedarbejder","kassemedarbejder",null,{"$f":"IFERROR(COUNTIF(Torsdag[[#This Row],[7:00]:[15:00]],\"*\"),\"\")","v":4}]

{"sheet":"Fredag","index":4,"n_rows":10,"n_cols":13,"rows_kept":10,"merged":[[1,1,2,1],[1,2,1,10],[1,11,1,12],[2,2,2,10],[2,11,2,12]]}
[null,{"$f":"VAGT_PLAN_Titel","v":"VAGTPLAN"}]
[null,"FREDAG","For uge: ",{"$nulls":8},{"$f":"DATO","v":"DATO"}]
[null,null,"Afdelingsnavn: ",{"$nulls":8},{"$f":"AFDELING","v":"AFDELING"}]
[null,"Navn på medarbejder","7:00","8:00","9:00","10:00","11:00","12:00","13:00","14:00","15:00","Syg?","I ALT"]
[null,"Anita C.","afdelingsleder","afdelingsleder","afdelingsleder","afdelingsleder","afdelingsleder","afdelingsleder","afdelingsleder","afdelingsleder","afdelingsleder",null,{"$f":"IFERROR(COUNTIF(Fredag[[#This Row],[7:00]:[15:00]],\"*\"),\"\")","v":9}]
[null,"Lukas S.",null,"kassemedarbejder","kassemedarbejder","kassemedarbejder","kassemedarbejder",{"$nulls":5},{"$f":"IFERROR(COUNTIF(Fredag[[#This Row],[7:00]:[15:00]],\"*\"),\"\")","v":4}]
[null,"Peter B.",null,"reception","reception","reception","reception ","reception","reception","reception",null,null,{"$f":"IFERROR(COUNTIF(Fredag[[#This Row],[7:00]:[15:00]],\"*\"),\"\")","v":7}]
[null,"David H.",null,"reception","reception","reception","reception ","reception","reception","reception",null,null,{"$f":"IFERROR(COUNTIF(Fredag[[#This Row],[7:00]:[15:00]],\"*\"),\"\")","v":7}]
[null,"Anders N.",{"$nulls":9},"Sygefravær",{"$f":"IFERROR(COUNTIF(Fredag[[#This Row],[7:00]:[15:00]],\"*\"),\"\")","v":0}]
[null,"Heidi I.",{"$nulls":5},"kassemedarbejder","kassemedarbejder","kassemedarbejder","kassemedarbejder",null,{"$f":"IFERROR(COUNTIF(Fredag[[#This Row],[7:00]:[15:00]],\"*\"),\"\")","v":4}]

{"sheet":"Lørdag","index":5,"n_rows":10,"n_cols":13,"rows_kept":10,"merged":[[1,1,2,1],[1,2,1,10],[1,11,1,12],[2,2,2,10],[2,11,2,12]]}
[null,{"$f":"VAGT_PLAN_Titel","v":"VAGTPLAN"}]
[null,"LØRDAG","For uge: ",{"$nulls":8},{"$f":"DATO","v":"DATO"}]
[null,null,"Afdelingsnavn: ",{"$nulls":8},{"$f":"AFDELING","v":"AFDELING"}]
[null,"Navn på medarbejder","7:00","8:00","9:00","10:00","11:00","12:00","13:00","14:00","15:00","Syg?","I ALT"]
[null,"Anita C.","afdelingsleder","afdelingsleder","afdelingsleder","afdelingsleder","afdelingsleder","afdelingsleder","afdelingsleder","afdelingsleder","afdelingsleder",null,{"$f":"IFERROR(COUNTIF(Lørdag[[#This Row],[7:00]:[15:00]],\"*\"),\"\")","v":9}]
[null,"Lukas S.",null,"kassemedarbejder","kassemedarbejder","kassemedarbejder","kassemedarbejder",{"$nulls":5},{"$f":"IFERROR(COUNTIF(Lørdag[[#This Row],[7:00]:[15:00]],\"*\"),\"\")","v":4}]
[null,"Peter B.",null,"reception","reception","reception","reception ","reception","reception","reception",null,null,{"$f":"IFERROR(COUNTIF(Lørdag[[#This Row],[7:00]:[15:00]],\"*\"),\"\")","v":7}]
[null,"David H.",null,"reception","reception","reception","reception ","reception","reception","reception",null,null,{"$f":"IFERROR(COUNTIF(Lørdag[[#This Row],[7:00]:[15:00]],\"*\"),\"\")","v":7}]
[null,"Anders N.",{"$nulls":9},"Sygefravær",{"$f":"IFERROR(COUNTIF(Lørdag[[#This Row],[7:00]:[15:00]],\"*\"),\"\")","v":0}]
[null,"Heidi I.",{"$nulls":5},"kassemedarbejder","kassemedarbejder","kassemedarbejder","kassemedarbejder",null,{"$f":"IFERROR(COUNTIF(Lørdag[[#This Row],[7:00]:[15:00]],\"*\"),\"\")","v":4}]

{"sheet":"Søndag","index":6,"n_rows":10,"n_cols":13,"rows_kept":10,"merged":[[1,1,2,1],[1,2,1,10],[1,11,1,12],[2,2,2,10],[2,11,2,12]]}
[null,{"$f":"VAGT_PLAN_Titel","v":"VAGTPLAN"}]
[null,"SØNDAG","For uge: ",{"$nulls":8},{"$f":"DATO","v":"DATO"}]
[null,null,"Afdelingsnavn: ",{"$nulls":8},{"$f":"AFDELING","v":"AFDELING"}]
[null,"Navn på medarbejder","7:00","8:00","9:00","10:00","11:00","12:00","13:00","14:00","15:00","Syg?","I ALT"]
[null,"Anita C.","afdelingsleder","afdelingsleder","afdelingsleder","afdelingsleder","afdelingsleder","afdelingsleder","afdelingsleder","afdelingsleder","afdelingsleder",null,{"$f":"IFERROR(COUNTIF(Søndag[[#This Row],[7:00]:[15:00]],\"*\"),\"\")","v":9}]
[null,"Lukas S.",null,"kassemedarbejder","kassemedarbejder","kassemedarbejder","kassemedarbejder",{"$nulls":5},{"$f":"IFERROR(COUNTIF(Søndag[[#This Row],[7:00]:[15:00]],\"*\"),\"\")","v":4}]
[null,"Peter B.",null,"reception","reception","reception","reception ","reception","reception","reception",null,null,{"$f":"IFERROR(COUNTIF(Søndag[[#This Row],[7:00]:[15:00]],\"*\"),\"\")","v":7}]
[null,"David H.",null,"reception","reception","reception","reception ","reception","reception","reception",null,null,{"$f":"IFERROR(COUNTIF(Søndag[[#This Row],[7:00]:[15:00]],\"*\"),\"\")","v":7}]
[null,"Anders N.",{"$nulls":9},"Sygefravær",{"$f":"IFERROR(COUNTIF(Søndag[[#This Row],[7:00]:[15:00]],\"*\"),\"\")","v":0}]
[null,"Heidi I.",{"$nulls":5},"kassemedarbejder","kassemedarbejder","kassemedarbejder","kassemedarbejder",null,{"$f":"IFERROR(COUNTIF(Søndag[[#This Row],[7:00]:[15:00]],\"*\"),\"\")","v":4}]